[Event "Late-Titled-Tuesday-Blitz-February-20-2024"]
[Site "Chess.com"]
[Date "2024.02.20"]
[Round "2"]
[White "penguingm1"]
[Black "maroro07"]
[Result "0-1"]
[WhiteElo "2832"]
[BlackElo "2415"]
[TimeControl "180+1"]
[EndTime "14:14:42 PST"]
[Termination "maroro07 won by checkmate"]

1. a4 {[%clk 0:03:00]} 1... h5 {[%clk 0:02:51.4]} 2. Ra3 {[%clk 0:02:59.4]} 2...
e6 {[%clk 0:02:44.7]} 3. Rg3 {[%clk 0:02:58.1]} 3... Nf6 {[%clk 0:02:41.8]} 4.
b3 {[%clk 0:02:57.3]} 4... h4 {[%clk 0:02:33]} 5. Rg5 {[%clk 0:02:55]} 5... d5
{[%clk 0:02:32.5]} 6. Bb2 {[%clk 0:02:51.2]} 6... Ne4 {[%clk 0:02:29.4]} 7. Rg4
{[%clk 0:02:50.6]} 7... e5 {[%clk 0:02:18.9]} 8. Rxe4 {[%clk 0:02:45.8]} 8...
dxe4 {[%clk 0:02:18.5]} 9. Bxe5 {[%clk 0:02:46.1]} 9... Nc6 {[%clk 0:02:17.1]}
10. Bb2 {[%clk 0:02:45.9]} 10... Bf5 {[%clk 0:02:10.1]} 11. e3 {[%clk
0:02:43.6]} 11... Qd7 {[%clk 0:02:04.6]} 12. Nc3 {[%clk 0:02:30.2]} 12... O-O-O
{[%clk 0:02:04.4]} 13. h3 {[%clk 0:02:28.9]} 13... f6 {[%clk 0:02:01.8]} 14.
Nge2 {[%clk 0:02:26.8]} 14... Bd6 {[%clk 0:02:00.3]} 15. Nb5 {[%clk 0:02:21.8]}
15... Be5 {[%clk 0:01:51.4]} 16. Ba3 {[%clk 0:02:10.7]} 16... a6 {[%clk
0:01:45.2]} 17. Nbc3 {[%clk 0:02:05.9]} 17... g5 {[%clk 0:01:45.5]} 18. Qc1
{[%clk 0:02:03.1]} 18... g4 {[%clk 0:01:43.5]} 19. hxg4 {[%clk 0:02:00]} 19...
Bxg4 {[%clk 0:01:44.4]} 20. Nxe4 {[%clk 0:02:00.5]} 20... h3 {[%clk 0:01:37.8]}
21. gxh3 {[%clk 0:01:49.7]} 21... Bf3 {[%clk 0:01:25.2]} 22. Nc5 {[%clk
0:01:37.3]} 22... Qxd2+ {[%clk 0:01:25]} 23. Qxd2 {[%clk 0:01:30.3]} 23... Rxd2
{[%clk 0:01:25.9]} 24. Kxd2 {[%clk 0:01:30.5]} 24... Bxh1 {[%clk 0:01:25.9]} 25.
Ng3 {[%clk 0:01:19.4]} 25... Bf3 {[%clk 0:01:18.6]} 26. Bc4 {[%clk 0:01:11.2]}
26... Rd8+ {[%clk 0:01:08.8]} 27. Kc1 {[%clk 0:01:11.1]} 27... Rd1# {[%clk
0:01:06]} 0-1

[Event "Late-Titled-Tuesday-Blitz-February-20-2024"]
[Site "Chess.com"]
[Date "2024.02.20"]
[Round "2"]
[White "IsaqueGoncalvesSanto"]
[Black "a-z30"]
[Result "0-1"]
[WhiteElo "1787"]
[BlackElo "2408"]
[TimeControl "180+1"]
[EndTime "14:14:45 PST"]
[Termination "a-z30 won by checkmate"]

1. d4 {[%clk 0:02:56.6]} 1... d6 {[%clk 0:03:00.3]} 2. c4 {[%clk 0:02:56.2]}
2... Nf6 {[%clk 0:03:01]} 3. Nc3 {[%clk 0:02:55.9]} 3... g6 {[%clk 0:03:01.7]}
4. e4 {[%clk 0:02:55.4]} 4... Bg7 {[%clk 0:03:02.4]} 5. f3 {[%clk 0:02:53.4]}
5... O-O {[%clk 0:03:03]} 6. Be3 {[%clk 0:02:53.4]} 6... c5 {[%clk 0:03:03.6]}
7. d5 {[%clk 0:02:53.3]} 7... e6 {[%clk 0:03:02.8]} 8. Qd2 {[%clk 0:02:52.4]}
8... a6 {[%clk 0:02:55.2]} 9. O-O-O {[%clk 0:02:45.8]} 9... exd5 {[%clk
0:02:50.9]} 10. Nxd5 {[%clk 0:02:45.8]} 10... Nc6 {[%clk 0:02:49.3]} 11. Nxf6+
{[%clk 0:02:44.6]} 11... Qxf6 {[%clk 0:02:48.7]} 12. Bg5 {[%clk 0:02:37]} 12...
Qd4 {[%clk 0:01:45.2]} 13. Qxd4 {[%clk 0:02:25.1]} 13... cxd4 {[%clk 0:01:29.5]}
14. a3 {[%clk 0:02:13.9]} 14... Be6 {[%clk 0:01:29.2]} 15. b3 {[%clk 0:01:52.7]}
15... Rfc8 {[%clk 0:01:28.3]} 16. Kb2 {[%clk 0:01:41.6]} 16... b5 {[%clk
0:01:20.4]} 17. cxb5 {[%clk 0:01:34.2]} 17... d3+ {[%clk 0:01:19.8]} 18. Ka2
{[%clk 0:01:31.7]} 18... axb5 {[%clk 0:01:18.9]} 19. Bxd3 {[%clk 0:01:27.8]}
19... Nb4+ {[%clk 0:01:18.2]} 20. Kb1 {[%clk 0:01:15.6]} 20... Rxa3 {[%clk
0:01:17.3]} 21. Bc4 {[%clk 0:00:48.8]} 21... Ra1# {[%clk 0:01:14.7]} 0-1

[Event "Late-Titled-Tuesday-Blitz-February-20-2024"]
[Site "Chess.com"]
[Date "2024.02.20"]
[Round "2"]
[White "Joachim100x"]
[Black "kibromNNN"]
[Result "1-0"]
[WhiteElo "2405"]
[BlackElo "1737"]
[TimeControl "180+1"]
[EndTime "14:14:53 PST"]
[Termination "Joachim100x won by resignation"]

1. e4 {[%clk 0:03:00.9]} 1... d6 {[%clk 0:02:58.8]} 2. d4 {[%clk 0:03:00.5]}
2... Nf6 {[%clk 0:02:58.6]} 3. Nc3 {[%clk 0:03:00.5]} 3... c6 {[%clk 0:02:56.8]}
4. f4 {[%clk 0:03:00.5]} 4... Bg4 {[%clk 0:02:56.7]} 5. Nf3 {[%clk 0:03:00.3]}
5... Qa5 {[%clk 0:02:54.7]} 6. e5 {[%clk 0:02:58.1]} 6... Nd5 {[%clk 0:02:50.1]}
7. Bd2 {[%clk 0:02:57.6]} 7... Qd8 {[%clk 0:02:45.1]} 8. Nxd5 {[%clk 0:02:56.9]}
8... cxd5 {[%clk 0:02:44.2]} 9. Be2 {[%clk 0:02:57.1]} 9... dxe5 {[%clk
0:02:40.3]} 10. fxe5 {[%clk 0:02:56.6]} 10... e6 {[%clk 0:02:39.9]} 11. O-O
{[%clk 0:02:56.4]} 11... Be7 {[%clk 0:02:38.1]} 12. c3 {[%clk 0:02:56.3]} 12...
O-O {[%clk 0:02:26.6]} 13. Qe1 {[%clk 0:02:56.3]} 13... f5 {[%clk 0:02:17.8]}
14. exf6 {[%clk 0:02:56]} 14... Bxf6 {[%clk 0:02:15.6]} 15. Qg3 {[%clk
0:02:54.1]} 15... Bf5 {[%clk 0:02:06.4]} 16. h4 {[%clk 0:02:53.9]} 16... Nc6
{[%clk 0:01:58.6]} 17. Ng5 {[%clk 0:02:53.8]} 17... h6 {[%clk 0:01:53.7]} 18.
Nf3 {[%clk 0:02:53.7]} 18... Be4 {[%clk 0:01:41.3]} 19. Bxh6 {[%clk 0:02:50.7]}
19... Ne7 {[%clk 0:01:24.4]} 20. Bg5 {[%clk 0:02:37.2]} 20... Nf5 {[%clk
0:01:20.2]} 21. Qg4 {[%clk 0:02:37.2]} 21... Bxf3 {[%clk 0:01:00.7]} 22. Rxf3
{[%clk 0:02:33.4]} 22... Nxh4 {[%clk 0:00:44.8]} 23. Rxf6 {[%clk 0:02:28.3]}
23... Rxf6 {[%clk 0:00:34.9]} 24. Bxh4 {[%clk 0:02:26.4]} 24... Rg6 {[%clk
0:00:28.4]} 25. Qxg6 {[%clk 0:02:23.9]} 25... Qxh4 {[%clk 0:00:27.9]} 26. Qxe6+
{[%clk 0:02:24]} 26... Kh8 {[%clk 0:00:27.4]} 27. Qh3 {[%clk 0:02:23.2]} 27...
Qxh3 {[%clk 0:00:26.2]} 28. gxh3 {[%clk 0:02:23.3]} 28... Rf8 {[%clk 0:00:25.5]}
29. Rf1 {[%clk 0:02:22.8]} 29... Re8 {[%clk 0:00:25]} 30. Bf3 {[%clk 0:02:23.1]}
30... Re3 {[%clk 0:00:21.3]} 31. Kf2 {[%clk 0:02:23.2]} 31... Rd3 {[%clk
0:00:20]} 32. Rd1 {[%clk 0:02:23.1]} 1-0

[Event "Late-Titled-Tuesday-Blitz-February-20-2024"]
[Site "Chess.com"]
[Date "2024.02.20"]
[Round "2"]
[White "Shtembuliak"]
[Black "Nouali_Mohamed"]
[Result "1-0"]
[WhiteElo "2861"]
[BlackElo "2532"]
[TimeControl "180+1"]
[EndTime "14:14:55 PST"]
[Termination "Shtembuliak won by resignation"]

1. c4 {[%clk 0:02:59.8]} 1... Nf6 {[%clk 0:02:58.8]} 2. Nc3 {[%clk 0:02:59.5]}
2... g6 {[%clk 0:02:59]} 3. e4 {[%clk 0:02:57.1]} 3... d6 {[%clk 0:02:59.4]} 4.
d4 {[%clk 0:02:57.7]} 4... Bg7 {[%clk 0:02:59.6]} 5. Nge2 {[%clk 0:02:58.5]}
5... O-O {[%clk 0:02:59.5]} 6. Ng3 {[%clk 0:02:59.1]} 6... c5 {[%clk 0:02:58]}
7. d5 {[%clk 0:02:58.7]} 7... a6 {[%clk 0:02:57.7]} 8. a4 {[%clk 0:02:58.5]}
8... e6 {[%clk 0:02:57.7]} 9. Be2 {[%clk 0:02:57.6]} 9... exd5 {[%clk
0:02:57.9]} 10. cxd5 {[%clk 0:02:58.5]} 10... Re8 {[%clk 0:02:56.7]} 11. O-O
{[%clk 0:02:57.5]} 11... h5 {[%clk 0:02:52.9]} 12. Bg5 {[%clk 0:02:55.6]} 12...
Qb6 {[%clk 0:02:50.5]} 13. Qc1 {[%clk 0:02:56]} 13... Nh7 {[%clk 0:02:42.9]} 14.
Bh4 {[%clk 0:02:56.2]} 14... Nd7 {[%clk 0:02:31.7]} 15. Kh1 {[%clk 0:02:48.2]}
15... Ne5 {[%clk 0:02:28.6]} 16. f4 {[%clk 0:02:45]} 16... Ng4 {[%clk
0:02:18.9]} 17. h3 {[%clk 0:02:45.1]} 17... Ngf6 {[%clk 0:02:08.1]} 18. a5
{[%clk 0:02:31.1]} 18... Qc7 {[%clk 0:02:06.6]} 19. Bd3 {[%clk 0:02:24.9]} 19...
c4 {[%clk 0:01:55.4]} 20. Bc2 {[%clk 0:02:25]} 20... Nd7 {[%clk 0:01:50.7]} 21.
e5 {[%clk 0:02:23.2]} 21... dxe5 {[%clk 0:01:41]} 22. f5 {[%clk 0:02:23.1]}
22... Nhf8 {[%clk 0:01:07]} 23. fxg6 {[%clk 0:02:07.1]} 23... Nxg6 {[%clk
0:00:55]} 24. Nxh5 {[%clk 0:02:06.3]} 24... Nxh4 {[%clk 0:00:35.2]} 25. Nxg7
{[%clk 0:02:06.3]} 25... Kxg7 {[%clk 0:00:18.7]} 26. Qg5+ {[%clk 0:02:05.8]}
26... Ng6 {[%clk 0:00:15.7]} 27. Rxf7+ {[%clk 0:02:05.7]} 27... Kxf7 {[%clk
0:00:16.6]} 28. Bxg6+ {[%clk 0:02:05.9]} 1-0

[Event "Late-Titled-Tuesday-Blitz-February-20-2024"]
[Site "Chess.com"]
[Date "2024.02.20"]
[Round "2"]
[White "SRob2003"]
[Black "Polstastisch"]
[Result "1-0"]
[WhiteElo "2677"]
[BlackElo "2362"]
[TimeControl "180+1"]
[EndTime "14:14:55 PST"]
[Termination "SRob2003 won by checkmate"]

1. d4 {[%clk 0:03:00.9]} 1... Nf6 {[%clk 0:02:57.3]} 2. Bg5 {[%clk 0:03:00.8]}
2... c5 {[%clk 0:02:50.1]} 3. d5 {[%clk 0:03:00.3]} 3... b5 {[%clk 0:02:44.8]}
4. a4 {[%clk 0:02:58.4]} 4... b4 {[%clk 0:02:26]} 5. f3 {[%clk 0:02:58.3]} 5...
d6 {[%clk 0:02:22.4]} 6. e4 {[%clk 0:02:57.7]} 6... Nbd7 {[%clk 0:02:21]} 7. Nd2
{[%clk 0:02:55.6]} 7... g6 {[%clk 0:02:16.4]} 8. Nc4 {[%clk 0:02:52.7]} 8... Bg7
{[%clk 0:02:11]} 9. Qd2 {[%clk 0:02:52.4]} 9... O-O {[%clk 0:01:45.9]} 10. Bh6
{[%clk 0:02:48.6]} 10... Re8 {[%clk 0:01:33.3]} 11. Bxg7 {[%clk 0:02:47]} 11...
Kxg7 {[%clk 0:01:34.2]} 12. h4 {[%clk 0:02:46.1]} 12... h5 {[%clk 0:01:33.4]}
13. Nh3 {[%clk 0:02:42.6]} 13... Qc7 {[%clk 0:01:25.1]} 14. Be2 {[%clk
0:02:39.2]} 14... Ba6 {[%clk 0:01:18]} 15. Rd1 {[%clk 0:02:27.8]} 15... Rad8
{[%clk 0:00:43.9]} 16. Qg5 {[%clk 0:02:24]} 16... Nh7 {[%clk 0:00:32.4]} 17. Qg3
{[%clk 0:02:17]} 17... Nhf6 {[%clk 0:00:19.2]} 18. Nf4 {[%clk 0:02:16.7]} 18...
Ne5 {[%clk 0:00:17.6]} 19. Nxe5 {[%clk 0:02:13.5]} 19... Bxe2 {[%clk 0:00:16.1]}
20. Nxf7 {[%clk 0:01:59.7]} 20... e5 {[%clk 0:00:05.3]} 21. Qxg6+ {[%clk
0:01:58.7]} 21... Kf8 {[%clk 0:00:05.1]} 22. Qxf6 {[%clk 0:01:54.7]} 22... Qxf7
{[%clk 0:00:03.9]} 23. Ng6+ {[%clk 0:01:54.8]} 23... Kg8 {[%clk 0:00:03.9]} 24.
Qh8# {[%clk 0:01:55.7]} 1-0

[Event "Late-Titled-Tuesday-Blitz-February-20-2024"]
[Site "Chess.com"]
[Date "2024.02.20"]
[Round "2"]
[White "ajeale2"]
[Black "kalxandria"]
[Result "1-0"]
[WhiteElo "2502"]
[BlackElo "2249"]
[TimeControl "180+1"]
[EndTime "14:15:01 PST"]
[Termination "ajeale2 won by checkmate"]

1. d4 {[%clk 0:03:00.9]} 1... Nf6 {[%clk 0:02:58.5]} 2. Bf4 {[%clk 0:03:01]}
2... d6 {[%clk 0:02:56.8]} 3. Nc3 {[%clk 0:02:59.2]} 3... g6 {[%clk 0:02:55.4]}
4. e4 {[%clk 0:02:59.1]} 4... Bg7 {[%clk 0:02:54.2]} 5. Qd2 {[%clk 0:02:59.6]}
5... c6 {[%clk 0:02:53.1]} 6. O-O-O {[%clk 0:02:59.9]} 6... b5 {[%clk
0:02:51.7]} 7. Bd3 {[%clk 0:02:59.4]} 7... h5 {[%clk 0:02:40.3]} 8. Nge2 {[%clk
0:02:51.7]} 8... a5 {[%clk 0:02:34.6]} 9. Rhe1 {[%clk 0:02:45.8]} 9... Nbd7
{[%clk 0:02:32.9]} 10. e5 {[%clk 0:02:45.6]} 10... b4 {[%clk 0:02:25.2]} 11. Na4
{[%clk 0:02:29]} 11... Nd5 {[%clk 0:02:22.8]} 12. exd6 {[%clk 0:02:24]} 12... e6
{[%clk 0:02:20.8]} 13. Bg5 {[%clk 0:02:17.2]} 13... Bf6 {[%clk 0:01:54.9]} 14.
h4 {[%clk 0:02:14.9]} 14... Bxg5 {[%clk 0:01:50.5]} 15. hxg5 {[%clk 0:02:14.9]}
15... O-O {[%clk 0:01:46.2]} 16. Ng3 {[%clk 0:02:11.1]} 16... N7b6 {[%clk
0:01:15.4]} 17. Nc5 {[%clk 0:01:58.8]} 17... a4 {[%clk 0:01:14]} 18. Rh1 {[%clk
0:01:44.8]} 18... Qxd6 {[%clk 0:01:07.5]} 19. Nce4 {[%clk 0:01:43.7]} 19... Qf4
{[%clk 0:01:00.3]} 20. Nxh5 {[%clk 0:01:43.9]} 20... Qxd2+ {[%clk 0:00:57.4]}
21. Kxd2 {[%clk 0:01:43.9]} 21... gxh5 {[%clk 0:00:54.7]} 22. Rxh5 {[%clk
0:01:44.5]} 22... Kg7 {[%clk 0:00:38.9]} 23. Rdh1 {[%clk 0:01:43.6]} 23... Rg8
{[%clk 0:00:33.6]} 24. Nd6 {[%clk 0:01:33.2]} 24... Nf4 {[%clk 0:00:29.7]} 25.
Rh7+ {[%clk 0:01:30.9]} 25... Kf8 {[%clk 0:00:26]} 26. Rxf7# {[%clk 0:01:30.8]}
1-0

[Event "Late-Titled-Tuesday-Blitz-February-20-2024"]
[Site "Chess.com"]
[Date "2024.02.20"]
[Round "2"]
[White "icaughtacrab"]
[Black "Piotrek1979"]
[Result "0-1"]
[WhiteElo "2051"]
[BlackElo "2429"]
[TimeControl "180+1"]
[EndTime "14:15:04 PST"]
[Termination "Piotrek1979 won by resignation"]

1. e4 {[%clk 0:03:00.9]} 1... e6 {[%clk 0:02:58.5]} 2. d4 {[%clk 0:03:01.1]}
2... b6 {[%clk 0:02:58.3]} 3. f4 {[%clk 0:02:59.9]} 3... Bb7 {[%clk 0:02:57.2]}
4. Nc3 {[%clk 0:03:00.5]} 4... Bb4 {[%clk 0:02:55.8]} 5. Bd3 {[%clk 0:02:58.8]}
5... c5 {[%clk 0:02:51.8]} 6. Nf3 {[%clk 0:02:56.8]} 6... Nf6 {[%clk 0:02:49.4]}
7. Qe2 {[%clk 0:02:55.9]} 7... Nc6 {[%clk 0:02:38.2]} 8. d5 {[%clk 0:02:36.9]}
8... Nd4 {[%clk 0:02:36.3]} 9. Qe3 {[%clk 0:02:15.2]} 9... O-O {[%clk 0:02:22]}
10. Nxd4 {[%clk 0:02:11.4]} 10... cxd4 {[%clk 0:02:21.1]} 11. Qxd4 {[%clk
0:02:10.8]} 11... Bc5 {[%clk 0:02:21.6]} 12. Qc4 {[%clk 0:02:06.4]} 12... exd5
{[%clk 0:02:20.3]} 13. exd5 {[%clk 0:01:48.9]} 13... Re8+ {[%clk 0:02:19.2]} 14.
Be2 {[%clk 0:01:46.2]} 14... Qe7 {[%clk 0:02:12.2]} 15. d6 {[%clk 0:01:30.6]}
15... Qxd6 {[%clk 0:02:09.2]} 16. Bd2 {[%clk 0:01:29.5]} 16... Bxg2 {[%clk
0:01:53.6]} 17. O-O-O {[%clk 0:01:18.5]} 17... Bxh1 {[%clk 0:01:52.7]} 18. Rxh1
{[%clk 0:01:19.4]} 18... Rac8 {[%clk 0:01:44.8]} 19. Qb3 {[%clk 0:01:03.1]}
19... Be3 {[%clk 0:01:39]} 20. Bxe3 {[%clk 0:00:53.9]} 20... Rxe3 {[%clk
0:01:39.9]} 21. Nb5 {[%clk 0:00:45.7]} 21... Qxf4 {[%clk 0:01:37.3]} 22. Rf1
{[%clk 0:00:25.2]} 22... Rf3+ {[%clk 0:01:30.4]} 0-1

[Event "Late-Titled-Tuesday-Blitz-February-20-2024"]
[Site "Chess.com"]
[Date "2024.02.20"]
[Round "2"]
[White "SocoLoco"]
[Black "Perecke"]
[Result "0-1"]
[WhiteElo "2196"]
[BlackElo "2470"]
[TimeControl "180+1"]
[EndTime "14:15:10 PST"]
[Termination "Perecke won by resignation"]

1. e4 {[%clk 0:03:00]} 1... c5 {[%clk 0:02:59.4]} 2. Nf3 {[%clk 0:02:56.8]} 2...
e6 {[%clk 0:02:59.8]} 3. d3 {[%clk 0:02:56.2]} 3... Nc6 {[%clk 0:02:59.9]} 4. g3
{[%clk 0:02:55.9]} 4... g6 {[%clk 0:03:00.6]} 5. Bg2 {[%clk 0:02:56.1]} 5... Bg7
{[%clk 0:03:01.4]} 6. O-O {[%clk 0:02:56.6]} 6... Nge7 {[%clk 0:03:02.3]} 7. Re1
{[%clk 0:02:57.1]} 7... O-O {[%clk 0:03:03]} 8. c3 {[%clk 0:02:57.8]} 8... d5
{[%clk 0:03:03.6]} 9. a3 {[%clk 0:02:58.4]} 9... Rb8 {[%clk 0:02:56.1]} 10. Qc2
{[%clk 0:02:55.9]} 10... b5 {[%clk 0:02:54.9]} 11. b4 {[%clk 0:02:55.6]} 11...
cxb4 {[%clk 0:02:53.7]} 12. axb4 {[%clk 0:02:55.4]} 12... Nxb4 {[%clk
0:02:53.4]} 13. Qb3 {[%clk 0:02:55.3]} 13... Nbc6 {[%clk 0:02:52.7]} 14. Ba3
{[%clk 0:02:51.6]} 14... b4 {[%clk 0:02:51.7]} 15. cxb4 {[%clk 0:02:50.3]} 15...
Bxa1 {[%clk 0:02:51.2]} 16. Nc3 {[%clk 0:02:49.2]} 16... Bxc3 {[%clk 0:02:36.6]}
17. Qxc3 {[%clk 0:02:50.1]} 17... d4 {[%clk 0:02:35.2]} 18. Qc5 {[%clk
0:02:39.4]} 18... Qb6 {[%clk 0:02:34.2]} 19. Qg5 {[%clk 0:02:25.7]} 19... f6
{[%clk 0:02:31.3]} 20. Qh6 {[%clk 0:02:23.3]} 20... e5 {[%clk 0:02:31.6]} 21. h4
{[%clk 0:02:09.1]} 21... Be6 {[%clk 0:02:11.2]} 22. Rb1 {[%clk 0:01:30.7]} 22...
Qa6 {[%clk 0:02:05.1]} 23. Qc1 {[%clk 0:01:18.4]} 23... Rfc8 {[%clk 0:01:58.5]}
24. Qb2 {[%clk 0:01:16.6]} 24... Qxd3 {[%clk 0:01:53.5]} 25. b5 {[%clk
0:01:13.9]} 25... a6 {[%clk 0:01:33.9]} 26. Ne1 {[%clk 0:01:06.2]} 26... Qc3
{[%clk 0:01:32.5]} 27. Qxc3 {[%clk 0:00:38.4]} 27... dxc3 {[%clk 0:01:32.2]} 28.
Rc1 {[%clk 0:00:39.1]} 28... axb5 {[%clk 0:01:31.4]} 29. Rxc3 {[%clk 0:00:38.2]}
29... b4 {[%clk 0:01:31.8]} 30. Bxb4 {[%clk 0:00:34.4]} 30... Nxb4 {[%clk
0:01:32.7]} 0-1

[Event "Late-Titled-Tuesday-Blitz-February-20-2024"]
[Site "Chess.com"]
[Date "2024.02.20"]
[Round "2"]
[White "gunslinger222"]
[Black "NLLO777"]
[Result "0-1"]
[WhiteElo "2296"]
[BlackElo "2507"]
[TimeControl "180+1"]
[EndTime "14:15:16 PST"]
[Termination "NLLO777 won by resignation"]

1. d4 {[%clk 0:02:59.1]} 1... d5 {[%clk 0:02:58.2]} 2. Bf4 {[%clk 0:02:58.5]}
2... Nc6 {[%clk 0:02:55.7]} 3. c3 {[%clk 0:02:54.2]} 3... Bf5 {[%clk 0:02:54.8]}
4. e3 {[%clk 0:02:48.2]} 4... e6 {[%clk 0:02:54.3]} 5. g4 {[%clk 0:02:47.9]}
5... Be4 {[%clk 0:02:52.8]} 6. f3 {[%clk 0:02:48]} 6... Bg6 {[%clk 0:02:53.4]}
7. h4 {[%clk 0:02:47.6]} 7... h5 {[%clk 0:02:53.7]} 8. g5 {[%clk 0:02:44.6]}
8... Bd6 {[%clk 0:02:52.6]} 9. Ne2 {[%clk 0:02:41.4]} 9... Nge7 {[%clk
0:02:51.8]} 10. Bxd6 {[%clk 0:02:38.5]} 10... Qxd6 {[%clk 0:02:51.6]} 11. Na3
{[%clk 0:02:38.3]} 11... Nf5 {[%clk 0:02:51]} 12. Qd2 {[%clk 0:02:33.2]} 12...
a6 {[%clk 0:02:48.5]} 13. Nf4 {[%clk 0:02:30.3]} 13... Nce7 {[%clk 0:02:46.3]}
14. Bd3 {[%clk 0:02:25.6]} 14... e5 {[%clk 0:02:37]} 15. dxe5 {[%clk 0:02:18.6]}
15... Qxe5 {[%clk 0:02:36.2]} 16. O-O-O {[%clk 0:02:11.8]} 16... Qxe3 {[%clk
0:02:03]} 17. Nxg6 {[%clk 0:01:35.1]} 17... Qxd2+ {[%clk 0:02:01.1]} 18. Rxd2
{[%clk 0:01:36]} 18... fxg6 {[%clk 0:02:01.4]} 19. Bxf5 {[%clk 0:01:35.4]} 19...
gxf5 {[%clk 0:02:00.4]} 20. Re1 {[%clk 0:01:35.1]} 20... Kf7 {[%clk 0:01:57.2]}
21. c4 {[%clk 0:01:12.8]} 21... c6 {[%clk 0:01:49.4]} 22. Nc2 {[%clk 0:01:07]}
22... Rhe8 {[%clk 0:01:48.5]} 23. cxd5 {[%clk 0:01:02.7]} 23... Nxd5 {[%clk
0:01:48.1]} 24. Rde2 {[%clk 0:01:00.3]} 24... Rxe2 {[%clk 0:01:36.7]} 25. Rxe2
{[%clk 0:01:01.2]} 25... Re8 {[%clk 0:01:36.4]} 26. Rxe8 {[%clk 0:01:01.8]}
26... Kxe8 {[%clk 0:01:37.3]} 27. Kd2 {[%clk 0:00:59.7]} 27... Ke7 {[%clk
0:01:35.5]} 28. a3 {[%clk 0:00:58.2]} 28... Kd6 {[%clk 0:01:28.3]} 29. Nd4
{[%clk 0:00:57.1]} 29... Ke5 {[%clk 0:01:23.9]} 30. Ne2 {[%clk 0:00:57.5]} 30...
Nf4 {[%clk 0:01:22.9]} 31. Ng3 {[%clk 0:00:56.6]} 31... g6 {[%clk 0:01:20.4]}
0-1

[Event "Late-Titled-Tuesday-Blitz-February-20-2024"]
[Site "Chess.com"]
[Date "2024.02.20"]
[Round "2"]
[White "lucliasco"]
[Black "davigator"]
[Result "1-0"]
[WhiteElo "2882"]
[BlackElo "2392"]
[TimeControl "180+1"]
[EndTime "14:15:19 PST"]
[Termination "lucliasco won by resignation"]

1. e4 {[%clk 0:02:49.3]} 1... c5 {[%clk 0:02:58.8]} 2. Nc3 {[%clk 0:02:48.2]}
2... Nc6 {[%clk 0:02:53.6]} 3. f4 {[%clk 0:02:48.3]} 3... g6 {[%clk 0:02:53.2]}
4. Nf3 {[%clk 0:02:47]} 4... Bg7 {[%clk 0:02:53.5]} 5. Bc4 {[%clk 0:02:46.4]}
5... Nh6 {[%clk 0:02:53.2]} 6. O-O {[%clk 0:02:45.2]} 6... O-O {[%clk
0:02:53.2]} 7. d3 {[%clk 0:02:44.9]} 7... d6 {[%clk 0:02:53]} 8. Qe1 {[%clk
0:02:39]} 8... Bg4 {[%clk 0:02:52.5]} 9. Qh4 {[%clk 0:02:38.1]} 9... Bxf3 {[%clk
0:02:52.4]} 10. Rxf3 {[%clk 0:02:36.1]} 10... e6 {[%clk 0:02:52.8]} 11. Rh3
{[%clk 0:02:24]} 11... Qxh4 {[%clk 0:02:51.2]} 12. Rxh4 {[%clk 0:02:24.9]} 12...
d5 {[%clk 0:02:14.5]} 13. Bb3 {[%clk 0:02:21.3]} 13... c4 {[%clk 0:02:09.8]} 14.
dxc4 {[%clk 0:02:17.3]} 14... dxe4 {[%clk 0:02:09]} 15. Nxe4 {[%clk 0:02:14.4]}
15... Nf5 {[%clk 0:02:01.6]} 16. Rh3 {[%clk 0:02:11.1]} 16... Rfd8 {[%clk
0:01:54.7]} 17. Bd2 {[%clk 0:02:05]} 17... a5 {[%clk 0:01:50.9]} 18. Ba4 {[%clk
0:01:58.9]} 18... Bxb2 {[%clk 0:01:41.4]} 19. Rb1 {[%clk 0:01:57.5]} 19... Bg7
{[%clk 0:01:41.1]} 20. Rxb7 {[%clk 0:01:53.2]} 20... Nb4 {[%clk 0:01:34.6]} 21.
Bc3 {[%clk 0:01:49]} 21... Rd1+ {[%clk 0:01:27]} 22. Kf2 {[%clk 0:01:48.9]}
22... Nxa2 {[%clk 0:01:25.2]} 23. Bxg7 {[%clk 0:01:41.3]} 23... Kxg7 {[%clk
0:01:25.7]} 24. Ng5 {[%clk 0:01:42.2]} 24... Rd2+ {[%clk 0:01:18.6]} 25. Ke1
{[%clk 0:01:41.6]} 25... Rad8 {[%clk 0:01:16.1]} 26. Nxe6+ {[%clk 0:01:37.4]}
26... Kg8 {[%clk 0:01:11.7]} 27. Nxd8 {[%clk 0:01:38.3]} 27... Rxd8 {[%clk
0:01:11.3]} 28. Bb3 {[%clk 0:01:31.7]} 28... Nd6 {[%clk 0:01:08.6]} 29. Ra7
{[%clk 0:01:24.5]} 29... Nc1 {[%clk 0:00:58.7]} 30. c5 {[%clk 0:01:23.3]} 30...
Nxb3 {[%clk 0:00:58.9]} 31. cxb3 {[%clk 0:01:20.2]} 31... Ne4 {[%clk 0:00:58]}
32. c6 {[%clk 0:01:19.2]} 32... Rc8 {[%clk 0:00:58]} 33. c7 {[%clk 0:01:16.2]}
33... h5 {[%clk 0:00:56.4]} 34. Rd3 {[%clk 0:01:14.8]} 34... Kg7 {[%clk
0:00:49.7]} 35. Rd8 {[%clk 0:01:14.6]} 1-0

[Event "Late-Titled-Tuesday-Blitz-February-20-2024"]
[Site "Chess.com"]
[Date "2024.02.20"]
[Round "2"]
[White "JoakimVonAnd"]
[Black "RichardShtivelband"]
[Result "1-0"]
[WhiteElo "2695"]
[BlackElo "2344"]
[TimeControl "180+1"]
[EndTime "14:15:26 PST"]
[Termination "JoakimVonAnd won by resignation"]

1. c4 {[%clk 0:03:00.9]} 1... c6 {[%clk 0:02:58]} 2. Nf3 {[%clk 0:02:59.5]} 2...
d5 {[%clk 0:02:57.7]} 3. e3 {[%clk 0:02:59.8]} 3... Nf6 {[%clk 0:02:57.3]} 4. b3
{[%clk 0:03:00]} 4... g6 {[%clk 0:02:56.9]} 5. Bb2 {[%clk 0:02:59.8]} 5... Bg7
{[%clk 0:02:57.2]} 6. Nc3 {[%clk 0:02:57.2]} 6... O-O {[%clk 0:02:56.7]} 7. Be2
{[%clk 0:02:55.3]} 7... Re8 {[%clk 0:02:52.2]} 8. d4 {[%clk 0:02:54.8]} 8... Bf5
{[%clk 0:02:48.4]} 9. O-O {[%clk 0:02:54.5]} 9... Nbd7 {[%clk 0:02:45.7]} 10. h3
{[%clk 0:02:54.9]} 10... Ne4 {[%clk 0:02:37]} 11. Nh4 {[%clk 0:02:36.3]} 11...
Nxc3 {[%clk 0:02:35.9]} 12. Bxc3 {[%clk 0:02:37.2]} 12... Be6 {[%clk 0:02:35.5]}
13. Nf3 {[%clk 0:02:36.1]} 13... h6 {[%clk 0:02:32.8]} 14. Bd3 {[%clk
0:02:32.7]} 14... Nf6 {[%clk 0:02:26.8]} 15. Qc2 {[%clk 0:02:28]} 15... Qd7
{[%clk 0:02:24]} 16. Ne5 {[%clk 0:02:27.9]} 16... Qc8 {[%clk 0:02:23]} 17. f4
{[%clk 0:02:19.4]} 17... Bf5 {[%clk 0:02:16.5]} 18. g4 {[%clk 0:02:01.1]} 18...
Bxd3 {[%clk 0:02:15.3]} 19. Qxd3 {[%clk 0:02:02]} 19... Ne4 {[%clk 0:02:14.6]}
20. f5 {[%clk 0:01:53]} 20... g5 {[%clk 0:01:55.5]} 21. Rac1 {[%clk 0:01:51.7]}
21... Qd8 {[%clk 0:01:45.1]} 22. Bb2 {[%clk 0:01:34.6]} 22... a5 {[%clk
0:01:42.2]} 23. cxd5 {[%clk 0:01:34.2]} 23... Qxd5 {[%clk 0:01:35.1]} 24. Nc4
{[%clk 0:00:54.8]} 24... Ng3 {[%clk 0:01:21.5]} 25. e4 {[%clk 0:00:54.5]} 25...
Nxe4 {[%clk 0:00:46.3]} 26. Ne3 {[%clk 0:00:53.5]} 26... Nc5 {[%clk 0:00:44.4]}
27. Rxc5 {[%clk 0:00:53.2]} 1-0